fUSD/lending_fUSD_20250101
["ID","MTS","AMOUNT","RATE_DAILY","PERIOD"]
[347369573,1735738240999,-1141.37,0.00010958,2]
[347369574,1735738241009,-500.0,0.00010958,2]
[347369575,1735738241019,-1637.14,0.00010958,2]
[347369576,1735738241031,-2175.09,0.00010958,2]
[347369577,1735738241041,-500.0,0.00010958,2]
[347369578,1735738241050,-500.0,0.00010958,2]
[347369579,1735738241060,-874.85,0.00010958,2]
[347369580,1735738241070,-500.0,0.00010958,2]
[347369581,1735738241079,-1179.78,0.00010958,2]
[347369582,1735738241088,-728.69,0.00010958,2]
[347369583,1735738241098,-500.0,0.00010958,2]
[347369584,1735738241107,-2153.42,0.00010958,2]
[347369585,1735738241117,-3136.42,0.00010958,2]
[347369586,1735738241127,-564.37,0.00010958,2]
[347369587,1735738241137,-500.0,0.00010958,2]
[347369588,1735738241148,-500.36122835,0.00010958,2]
[347369589,1735738241159,-500.0,0.00010958,2]
[347369590,1735738241168,-500.0,0.00010958,2]
[347369591,1735738241178,-500.0,0.00010958,2]
[347369592,1735738241187,-684.57,0.00010958,2]
[347369593,1735738241196,-500.0,0.00010958,2]
[347369594,1735738241206,-500.0,0.00010958,2]
[347369595,1735738241216,-500.0,0.00010958,2]
[347369596,1735738241227,-2791.89,0.00010958,2]
[347369597,1735738241237,-792.3,0.00010958,2]
[347369598,1735738241247,-500.0,0.00010958,2]
[347369599,1735738241258,-500.0,0.00010958,2]
[347369600,1735738241268,-655.78,0.00010958,2]
[347369601,1735738241281,-2770.56,0.00010958,2]
[347369602,1735738241292,-500.0,0.00010958,2]
[347369603,1735738241301,-694.52,0.00010958,2]
[347369604,1735738241311,-500.0,0.00010958,2]
[347369605,1735738241320,-500.0,0.00010958,2]
[347369606,1735738241330,-781.05,0.00010958,2]
[347369607,1735738241340,-500.0,0.00010958,2]
[347369608,1735738241349,-500.0,0.00010958,2]
[347369609,1735738241359,-500.0,0.00010958,2]
[347369610,1735738241368,-500.0,0.00010958,2]
[347369611,1735738241379,-530.69,0.00010958,2]
[347369612,1735738241388,-8110.06,0.00010958,2]
[347369613,1735738241397,-500.0,0.00010958,2]
[347369614,1735738241407,-2045.47,0.00010958,2]
[347369615,1735738241416,-579.74,0.00010958,2]
[347369616,1735738241428,-500.0,0.00010958,2]
[347369617,1735738241438,-1452.46,0.00010958,2]
[347369618,1735738241448,-1302.41,0.00010958,2]
[347369619,1735738241457,-1890.97,0.00010958,2]
[347369620,1735738241466,-2287.63,0.00010958,2]
[347369621,1735738241476,-3972.41,0.00010958,2]
[347369622,1735738241485,-500.0,0.00010958,2]
[347369623,1735738241495,-500.0,0.00010958,2]
[347369624,1735738241505,-567.79,0.00010958,2]
[347369625,1735738241515,-1689.27,0.00010958,2]
[347369626,1735738241525,-536.03,0.00010958,2]
[347369627,1735738241534,-6888.812051,0.00010958,2]
[347369628,1735738241544,-1220.49,0.00010958,2]
[347369629,1735738241554,-500.0,0.00010958,2]
[347369630,1735738241563,-12778.35,0.00010958,2]
[347369631,1735738241572,-1358.24,0.00010958,2]
[347369632,1735738241581,-292.49936421,0.00010958,2]
[347369633,1735738241590,-1468.34,0.00010958,2]
[347369634,1735738241599,-1318.3,0.00010958,2]
[347369635,1735738241608,-778.78,0.00010958,2]
[347369636,1735738241617,-500.0,0.00010958,2]
[347369637,1735738241627,-500.0,0.00010958,2]
[347369638,1735738241637,-155.490194,0.00010958,2]
[347369639,1735738241646,-500.0,0.00010958,2]
[347369640,1735738241655,-1006.62,0.00010958,2]
[347369641,1735738241665,-787.31,0.00010958,2]
[347369642,1735738241673,-500.0,0.00010958,2]
[347369643,1735738241683,-1425.86,0.00010958,2]
[347369644,1735738241692,-3677.83,0.00010958,2]
[347369645,1735738241702,-500.0,0.00010958,2]
[347369646,1735738241711,-1735.28,0.00010958,2]
[347369647,1735738241721,-1817.4,0.00010958,2]
[347369648,1735738241730,-574.13,0.00010958,2]
[347369649,1735738241739,-3729.38,0.00010958,2]
[347369650,1735738241748,-500.0,0.00010958,2]
[347369651,1735738241758,-1627.55,0.00010958,2]
[347369652,1735738241767,-500.0,0.00010958,2]
[347369653,1735738241776,-500.0,0.00010958,2]
[347369654,1735738241785,-1834.8,0.00010958,2]
[347369655,1735738241794,-1578.7,0.00010958,2]
[347369656,1735738241803,-500.0,0.00010958,2]
[347369657,1735738241813,-1510.56,0.00010958,2]
[347369659,1735738241822,-6652.94,0.00010958,2]
[347369661,1735738241831,-369.89529221,0.00010958,2]
[347369662,1735738241841,-1298.08,0.00010958,2]
[347369663,1735738241852,-1239.27,0.00010958,2]
[347369664,1735738241862,-1486.02,0.00010958,2]
[347369665,1735738241872,-1982.54,0.00010958,2]
[347369666,1735738241881,-5116.16,0.00010958,2]
[347369667,1735738241891,-892.56,0.00010958,2]
[347369668,1735738241901,-9707.616218,0.00010958,2]
[347369669,1735738241911,-500.0,0.00010958,2]
[347369670,1735738241920,-3665.8,0.00010958,2]
[347369671,1735738241931,-500.0,0.00010958,2]
[347369672,1735738241940,-1563.25,0.00010958,2]
[347369673,1735738241950,-500.0,0.00010958,2]
[347369674,1735738241960,-500.0,0.00010958,2]
[347369675,1735738241969,-1406.86,0.00010958,2]
[347369676,1735738241979,-1377.55,0.00010958,2]
[347369677,1735738241989,-914.9,0.00010958,2]
[347369678,1735738241999,-893.64,0.00010958,2]
[347369679,1735738242008,-500.0,0.00010958,2]
[347369680,1735738242019,-500.0,0.00010958,2]
[347369681,1735738242028,-500.0,0.00010958,2]
[347369682,1735738242038,-759.76,0.00010958,2]
[347369683,1735738242048,-500.0,0.00010958,2]
[347369684,1735738242059,-653.87,0.00010958,2]
[347369685,1735738242069,-1733.39,0.00010958,2]
[347369686,1735738242079,-614.11,0.00010958,2]
[347369687,1735738242088,-1566.24,0.00010958,2]
[347369688,1735738242098,-1352.55,0.00010958,2]
[347369689,1735738242107,-500.65088403,0.00010958,2]
[347369690,1735738242117,-2603.2,0.00010958,2]
[347369691,1735738242126,-1983.07,0.00010958,2]
[347369692,1735738242136,-2103.07,0.00010958,2]
[347369693,1735738242145,-3254.99,0.00010958,2]
[347369694,1735738242156,-198.64269522,0.00010958,2]
[347369695,1735738242166,-4475.88,0.00010958,2]
[347369696,1735738242176,-1115.12,0.00010958,2]
[347369697,1735738242185,-1115.12,0.00010958,2]
[347369698,1735738242195,-793.66,0.00010958,2]
[347369699,1735738242205,-500.0,0.00010958,2]
[347369700,1735738242214,-2042.94,0.00010958,2]
[347369701,1735738242224,-500.0,0.00010958,2]
[347369702,1735738242234,-1725.24,0.00010958,2]
[347369703,1735738242244,-500.0,0.00010958,2]
[347369704,1735738242255,-500.0,0.00010958,2]
[347369705,1735738242268,-2414.98,0.00010958,2]
[347369706,1735738242280,-500.0,0.00010958,2]
[347369707,1735738242292,-1801.69,0.00010958,2]
[347369708,1735738242301,-2174.91,0.00010958,2]
[347369709,1735738242311,-500.0,0.00010958,2]
[347369710,1735738242321,-1032.53,0.00010958,2]
[347369711,1735738242331,-500.0,0.00010958,2]
[347369712,1735738242342,-2036.39,0.00010958,2]
[347369713,1735738242353,-8905.45,0.00010958,2]
[347369714,1735738242364,-500.0,0.00010958,2]
[347369715,1735738242373,-904.67,0.00010958,2]
[347369716,1735738242383,-500.0,0.00010958,2]
[347369717,1735738242395,-665.12,0.00010958,2]
[347369718,1735738242404,-1645.63,0.00010958,2]
[347369719,1735738242414,-1715.68,0.00010958,2]
[347369720,1735738242423,-1903.44,0.00010958,2]
[347369721,1735738242433,-1342.29,0.00010958,2]
[347369722,1735738242444,-500.0,0.00010958,2]
[347369723,1735738242454,-500.0,0.00010958,2]
[347369724,1735738242464,-829.5,0.00010958,2]
[347369725,1735738242474,-2275.07,0.00010958,2]
[347369726,1735738242483,-632.92,0.00010958,2]
[347369727,1735738242492,-575.65,0.00010958,2]
[347369728,1735738242502,-3645.72,0.00010958,2]
[347369729,1735738242512,-1277.05,0.00010958,2]
[347369730,1735738242521,-500.0,0.00010958,2]
[347369731,1735738242531,-500.0,0.00010958,2]
[347369732,1735738242540,-500.41563858,0.00010958,2]
[347369733,1735738242550,-1501.41,0.00010958,2]
[347369734,1735738242559,-562.9,0.00010958,2]
[347369735,1735738242569,-500.0,0.00010958,2]
[347369736,1735738242578,-2285.21,0.00010958,2]
[347369737,1735738242588,-500.0,0.00010958,2]
[347369738,1735738242597,-1199.08,0.00010958,2]
[347369739,1735738242607,-4033.72,0.00010958,2]
[347369740,1735738242617,-500.0,0.00010958,2]
[347369741,1735738242627,-5038.53,0.00010958,2]
[347369742,1735738242637,-14152.55,0.00010958,2]
[347369743,1735738242648,-500.0,0.00010958,2]
[347369744,1735738242658,-7635.36,0.00010958,2]
[347369745,1735738242668,-500.0,0.00010958,2]
[347369746,1735738242679,-500.0,0.00010958,2]
[347369747,1735738242689,-619.51,0.00010958,2]
[347369748,1735738242699,-500.0,0.00010958,2]
[347369749,1735738242709,-762.85,0.00010958,2]
[347369750,1735738242719,-500.0,0.00010958,2]
[347369751,1735738242728,-500.0,0.00010958,2]
[347369752,1735738242739,-16171.83,0.00010958,2]
[347369753,1735738242749,-767.99,0.00010958,2]
[347369754,1735738242759,-804.36,0.00010958,2]
[347369755,1735738242769,-1900.02,0.00010958,2]
[347369756,1735738242779,-500.0,0.00010958,2]
[347369757,1735738242789,-2407.25,0.00010958,2]
[347369758,1735738242799,-500.0,0.00010958,2]
[347369759,1735738242809,-29687.32,0.00010958,2]
[347369760,1735738242818,-1399.23,0.00010958,2]
[347369761,1735738242828,-936.41,0.00010958,2]
[347369762,1735738242839,-4245.65,0.00010958,2]
[347369763,1735738242850,-1276.82,0.00010958,2]
[347369764,1735738242860,-5471.82,0.00010958,2]
[347369766,1735738242870,-500.0,0.00010958,2]
[347369769,1735738242879,-1698.31,0.00010958,2]
[347369771,1735738242890,-500.0,0.00010958,2]
[347369773,1735738242904,-2601.18,0.00010958,2]
[347369775,1735738242914,-500.0,0.00010958,2]
[347369777,1735738242926,-2032.9,0.00010958,2]
[347369778,1735738242938,-2147.45,0.00010958,2]
[347369779,1735738242948,-1324.03,0.00010958,2]
[347369780,1735738242959,-1208.61,0.00010958,2]
[347369781,1735738242970,-527.59,0.00010958,2]
[347369782,1735738242982,-706.7,0.00010958,2]
[347369783,1735738242993,-500.0,0.00010958,2]
[347369784,1735738243005,-4090.7,0.00010958,2]
[347369785,1735738243016,-942.68,0.00010958,2]
[347369786,1735738243027,-500.0,0.00010958,2]
[347369787,1735738243037,-500.0,0.00010958,2]
[347369788,1735738243047,-500.0,0.00010958,2]
[347369789,1735738243057,-4773.45,0.00010958,2]
[347369790,1735738243067,-500.0,0.00010958,2]
[347369791,1735738243078,-2616.39,0.00010958,2]
[347369792,1735738243088,-1902.09,0.00010958,2]
[347369793,1735738243098,-500.0,0.00010958,2]
[347369794,1735738243109,-1334.93,0.00010958,2]
[347369795,1735738243119,-4732.98,0.00010958,2]
[347369796,1735738243129,-500.59535112,0.00010958,2]
[347369797,1735738243139,-500.0,0.00010958,2]
[347369798,1735738243150,-563.76,0.00010958,2]
[347369799,1735738243160,-500.0,0.00010958,2]
[347369800,1735738243170,-3714.09,0.00010958,2]
[347369801,1735738243181,-952.5,0.00010958,2]
[347369802,1735738243191,-2804.02,0.00010958,2]
[347369803,1735738243201,-500.0,0.00010958,2]
[347369804,1735738243211,-500.0,0.00010958,2]
[347369805,1735738243221,-510.60069867,0.00010958,2]
[347369806,1735738243232,-1794.7,0.00010958,2]
[347369807,1735738243242,-500.0,0.00010958,2]
[347369808,1735738243252,-1660.36,0.00010958,2]
[347369809,1735738243262,-979.76,0.00010958,2]
[347369810,1735738243272,-321.1193767,0.00010958,2]
[347369811,1735738243288,-2376.9,0.00010958,2]
[347369812,1735738243298,-5638.68,0.00010958,2]
[347369813,1735738243308,-1138.8,0.00010958,2]
[347369814,1735738243318,-1331.78,0.00010958,2]
[347369815,1735738243329,-1935.33,0.00010958,2]
[347369816,1735738243339,-851.9,0.00010958,2]
[347369817,1735738243349,-500.0,0.00010958,2]
[347369818,1735738243359,-4723.28,0.00010958,2]
[347369819,1735738243372,-500.0,0.00010958,2]
[347369820,1735738243383,-500.0,0.00010958,2]
[347369821,1735738243394,-1932.62,0.00010958,2]
[347369822,1735738243404,-575.67,0.00010958,2]
[347369823,1735738243414,-5350.0,0.00010958,2]
[347369824,1735738243425,-500.0,0.00010958,2]
[347369825,1735738243435,-500.0,0.00010958,2]
[347369826,1735738243445,-1161.91,0.00010958,2]
[347369827,1735738243455,-500.0,0.00010958,2]
[347369828,1735738243465,-2498.43,0.00010958,2]
[347369829,1735738243475,-500.0,0.00010958,2]
[347369830,1735738243485,-849.8,0.00010958,2]
[347369831,1735738243495,-2250.13,0.00010958,2]
[347369832,1735738243505,-500.0,0.00010958,2]
[347369834,1735738243515,-6885.46,0.00010958,2]
[347369836,1735738243525,-500.0,0.00010958,2]
[347369838,1735738243535,-8746.03,0.00010958,2]
[347369840,1735738243545,-1799.34,0.00010958,2]
[347369842,1735738243555,-500.0,0.00010958,2]
[347369843,1735738243565,-500.0,0.00010958,2]
[347369844,1735738243575,-566.61,0.00010958,2]
[347369845,1735738243585,-913.48,0.00010958,2]
[347369846,1735738243595,-1490.08,0.00010958,2]
[347369847,1735738243605,-3995.94,0.00010958,2]
[347369848,1735738243615,-1399.92,0.00010958,2]
[347369849,1735738243626,-1148.62,0.00010958,2]
[347369850,1735738243636,-957.2,0.00010958,2]
[347369851,1735738243646,-500.15,0.00010958,2]
[347369852,1735738243656,-10181.25,0.00010958,2]
[347369853,1735738243666,-3398.14,0.00010958,2]
[347369854,1735738243676,-1453.16,0.00010958,2]
[347369855,1735738243687,-4969.24,0.00010958,2]
[347369856,1735738243697,-2731.9,0.00010958,2]
[347369857,1735738243708,-8628.65,0.00010958,2]
[347369858,1735738243718,-500.0,0.00010958,2]
[347369859,1735738243728,-2257.81,0.00010958,2]
[347369860,1735738243738,-1612.88,0.00010958,2]
[347369861,1735738243747,-3633.73,0.00010958,2]
[347369862,1735738243757,-1855.11,0.00010958,2]
[347369863,1735738243767,-626.55,0.00010958,2]
[347369864,1735738243777,-500.0,0.00010958,2]
[347369865,1735738243787,-838.95,0.00010958,2]
[347369866,1735738243797,-500.0,0.00010958,2]
[347369867,1735738243806,-2763.99,0.00010958,2]
[347369868,1735738243816,-889.97,0.00010958,2]
[347369869,1735738243826,-807.39,0.00010958,2]
[347369870,1735738243836,-1295.5,0.00010958,2]
[347369871,1735738243846,-1595.65,0.00010958,2]
[347369872,1735738243856,-4786.48,0.00010958,2]
[347369873,1735738243865,-500.0,0.00010958,2]
[347369874,1735738243875,-854.27,0.00010958,2]
[347369875,1735738243885,-500.0,0.00010958,2]
[347369876,1735738243895,-734.64,0.00010958,2]
[347369877,1735738243905,-991.59,0.00010958,2]
[347369878,1735738243914,-500.0,0.00010958,2]
[347369879,1735738243923,-832.23,0.00010958,2]
[347369880,1735738243934,-10451.6,0.00010958,2]
[347369881,1735738243944,-500.0,0.00010958,2]
[347369882,1735738243954,-1255.8,0.00010958,2]
[347369883,1735738243964,-786.82,0.00010958,2]
[347369884,1735738243974,-3630.26,0.00010958,2]
[347369885,1735738243984,-1650.78,0.00010958,2]
[347369886,1735738243995,-500.0,0.00010958,2]
[347369887,1735738244005,-2959.96,0.00010958,2]
[347369888,1735738244015,-500.0,0.00010958,2]
[347369889,1735738244024,-500.0,0.00010958,2]
[347369890,1735738244035,-2423.68,0.00010958,2]
[347369891,1735738244044,-1853.79,0.00010958,2]
[347369892,1735738244054,-539.9,0.00010958,2]
[347369893,1735738244063,-1553.41,0.00010958,2]
[347369894,1735738244073,-500.0,0.00010958,2]
[347369895,1735738244083,-500.0,0.00010958,2]
[347369896,1735738244093,-503.79,0.00010958,2]
[347369897,1735738244103,-431.0,0.00010959,2]
[347369898,1735738244113,-800.0,0.00010959,2]
[347369899,1735738244123,-19527.0,0.00010959,2]
[347369900,1735738244133,-503.81658871,0.00010959,2]
[347369901,1735738244408,-500.0,0.00010959,2]
[347369902,1735738244418,-500.0,0.00010959,2]
[347369903,1735738244428,-500.0,0.00010959,2]
[347369904,1735738244437,-528.48766982,0.00010959,2]
[347369905,1735738244447,-501.64222081,0.00010959,2]
[347369906,1735738244456,-500.0,0.00010959,2]
[347369907,1735738244465,-459.82864477,0.00010959,2]
[347369908,1735738244475,-500.0,0.00010959,2]
[347369909,1735738244484,-500.0,0.00010959,2]
[347369910,1735738244494,-500.0,0.00010959,2]
[347369911,1735738244503,-500.0,0.00010959,2]
[347369912,1735738244512,-500.0,0.00010959,2]
[347369913,1735738244522,-500.0,0.00010959,2]
[347369914,1735738244531,-500.0,0.00010959,2]
[347369915,1735738244540,-500.0,0.00010959,2]
[347369916,1735738244550,-500.0,0.00010959,2]
[347369917,1735738244559,-500.0,0.00010959,2]
[347369918,1735738244568,-500.0,0.00010959,2]
[347369919,1735738244578,-500.0,0.00010959,2]
[347369920,1735738244587,-500.0,0.00010959,2]
[347369921,1735738244597,-500.0,0.00010959,2]
[347369922,1735738244607,-500.0,0.00010959,2]
[347369923,1735738244616,-500.0,0.00010959,2]
[347369924,1735738244626,-500.0,0.00010959,2]
[347369925,1735738244635,-364.32465712,0.00010959,2]
[347369926,1735738244645,-150.0,0.00010968,2]
[347369927,1735738244655,-500.80310629,0.00010973,2]
[347369928,1735738244664,-500.0,0.00010973,2]
[347369929,1735738244673,-500.0,0.00010973,2]
[347369930,1735738244684,-500.0,0.00010973,2]
[347369931,1735738244694,-151.96614165,0.00010973,2]
[347369932,1735738244703,-151.96669825,0.00010973,2]
[347369933,1735738244712,-151.96670159,0.00010973,2]
[347369934,1735738244721,-151.96670111,0.00010973,2]
[347369935,1735738244731,-150.96691915,0.00010973,2]
[347369936,1735738244740,-150.96692089,0.00010973,2]
[347369937,1735738244749,-151.96614166,0.00010973,2]
[347369938,1735738244759,-151.96614301,0.00010973,2]
[347369939,1735738244768,-151.96669999,0.00010973,2]
[347369940,1735738244778,-151.96669957,0.00010973,2]
[347369941,1735738244787,-151.9667018,0.00010973,2]
[347369942,1735738244796,-151.9667027,0.00010973,2]
[347369943,1735738244805,-151.96614298,0.00010973,2]
[347369944,1735738244815,-151.96669845,0.00010973,2]
[347369945,1735738244824,-151.9667002,0.00010973,2]
[347369946,1735738244833,-159.96494766,0.00010973,2]
[347369947,1735738244843,-151.96670112,0.00010973,2]
[347369948,1735738244854,-261.72812875,0.00010973,2]
[347369949,1735738244864,-151.96669853,0.00010973,2]
[347369950,1735738244874,-160.21829502,0.00010973,2]
[347369951,1735738244883,-500.0,0.00010973,2]
[347369952,1735738244893,-154.96547339,0.00010973,2]
[347369953,1735738244903,-150.9089772,0.00010973,2]
[347369954,1735738244913,-118496.60171764,0.0001098,2]
[347369955,1735738244922,-297.71665273,0.00010986,2]
[347369956,1735738244933,-226.00763541,0.00010986,2]
[347369957,1735738244942,-220.24651934,0.00010986,2]
[347369958,1735738244952,-400.0,0.00010986,2]
[347369959,1735738244962,-150.0,0.00010999,2]
[347369960,1735738244971,-1000.0,0.00010999,2]
[347369961,1735738244981,-1000.0,0.00010999,2]
[347369962,1735738244991,-1552.68,0.00010999,2]
[347369963,1735738245000,-1552.68,0.00010999,2]
[347369964,1735738245010,-1552.68,0.00010999,2]
[347369965,1735738245020,-1552.68,0.00010999,2]
[347369966,1735738245029,-1552.68,0.00010999,2]
[347369967,1735738245038,-1552.68,0.00010999,2]
[347369968,1735738245049,-1552.68,0.00010999,2]
[347369969,1735738245059,-1552.68,0.00010999,2]
[347369970,1735738245068,-1552.68,0.00010999,2]
[347369971,1735738245078,-1552.68,0.00010999,2]
[347369972,1735738245087,-1552.68,0.00010999,2]
[347369973,1735738245097,-1552.68,0.00010999,2]
[347369974,1735738245106,-1552.68,0.00010999,2]
[347369975,1735738245116,-1552.68,0.00010999,2]
[347369976,1735738245126,-1552.68,0.00010999,2]
[347369977,1735738245135,-1552.68,0.00010999,2]
[347369978,1735738245144,-1552.68,0.00010999,2]
[347369979,1735738245154,-1552.68,0.00010999,2]
[347369980,1735738245163,-1552.74,0.00010999,2]
[347369981,1735738245173,-624.97,0.00010999,2]
[347369982,1735738245183,-39233.28498985,0.00011,2]
[347369983,1735738245192,-2706450.23898318,0.00011,2]
[347369984,1735738245202,-3127844.73955499,0.00011,2]
[347369987,1735738245850,-1126807.72895,0.00011,2]
[347369989,1735738245921,-500.0,0.00010958,2]
[347369990,1735738245937,-166.219778,0.00011,2]
[347369991,1735738245953,-14221.5236,0.00011,2]
[347369993,1735738247742,-468.092625,0.000109,2]
[347369994,1735738247757,-202.54707277,0.000109,2]
[347369995,1735738247769,-500.0,0.00010958,2]
[347369996,1735738247780,-1412.93141999,0.00010958,2]
[347369997,1735738247794,-243.41858001,0.00010958,2]
[347369998,1735738247805,-151.96614339,0.00010973,2]
[347369999,1735738247816,-151.96670112,0.00010973,2]
[347370000,1735738247827,-2184.96726286,0.00011,2]
[347370001,1735738247840,-6348.342,0.00011,2]
[347370002,1735738247889,-514.09640394,0.00011,2]
[347370003,1735738247903,-562.03917688,0.00011,2]
[347370004,1735738247916,-1109.68611889,0.00011,2]
[347370005,1735738247931,-853.2001569,0.00011,2]
[347370006,1735738247944,-13580.98115534,0.00011,2]
[347370007,1735738247969,-31064.64999992,0.00011,2]
[347370008,1735738247980,-10171055.04663582,0.00011,2]
[347370009,1735738247990,-2986312.57800588,0.00011,2]
[347370010,1735738247999,-8165755.18,0.00011,2]
[347370011,1735738248009,-2352.94,0.00011,2]
[347370012,1735738248018,-500.0,0.00011,3]
[347370013,1735738248027,-418.91,0.00011,2]
[347370014,1735738248036,-500.0,0.00011,2]
[347370015,1735738248046,-500.0,0.00011,2]
[347370016,1735738248055,-500.0,0.00011,2]
[347370017,1735738248064,-496.16,0.00011,2]
[347370018,1735738248073,-250.0,0.00011,2]
[347370019,1735738248082,-250.0,0.00011,2]
[347370020,1735738248091,-250.0,0.00011,2]
[347370021,1735738248101,-250.0,0.00011,2]
[347370022,1735738248110,-250.0,0.00011,2]
[347370023,1735738248119,-250.0,0.00011,2]
[347370024,1735738248128,-250.0,0.00011,2]
[347370025,1735738248137,-250.0,0.00011,2]
[347370026,1735738248147,-250.0,0.00011,2]
[347370027,1735738248156,-250.0,0.00011,2]
[347370028,1735738248166,-250.0,0.00011,2]
[347370029,1735738248175,-250.0,0.00011,2]
[347370030,1735738248187,-250.0,0.00011,2]
[347370031,1735738248196,-250.0,0.00011,2]
[347370032,1735738248206,-250.0,0.00011,2]
[347370033,1735738248216,-250.0,0.00011,2]
[347370034,1735738248716,-250.0,0.00011,2]
[347370035,1735738248751,-250.0,0.00011,2]
[347370036,1735738248783,-250.0,0.00011,2]
[347370037,1735738248792,-250.0,0.00011,2]
[347370038,1735738248802,-250.0,0.00011,2]
[347370039,1735738248811,-250.0,0.00011,2]
[347370040,1735738248821,-250.0,0.00011,2]
[347370041,1735738248830,-250.0,0.00011,2]
[347370042,1735738248840,-250.0,0.00011,2]
[347370043,1735738248849,-250.0,0.00011,2]
[347370044,1735738248859,-250.0,0.00011,2]
[347370045,1735738248868,-250.0,0.00011,2]
[347370046,1735738248878,-250.0,0.00011,2]
[347370047,1735738248887,-250.0,0.00011,2]
[347370048,1735738248897,-250.0,0.00011,2]
[347370049,1735738248907,-250.0,0.00011,2]
[347370050,1735738248916,-250.0,0.00011,2]
[347370051,1735738248926,-250.0,0.00011,2]
[347370052,1735738248936,-250.0,0.00011,2]
[347370053,1735738248946,-250.0,0.00011,2]
[347370054,1735738248955,-250.0,0.00011,2]
[347370055,1735738248965,-250.0,0.00011,2]
[347370056,1735738248975,-6026683.6748452,0.00011,4]
[347370057,1735738248997,-760.07716815,0.00011,4]
[347370058,1735738249009,-965.47893929,0.00011,4]
[347370059,1735738249021,-385.36424049,0.00011,4]
[347370060,1735738249033,-865.69,0.00011,4]
[347370061,1735738249045,-468.3,0.00011,4]
[347370062,1735738249152,-10892.39908829,0.00011,4]
[347370063,1735738249165,-1059.1064544,0.00011,4]
[347370064,1735738249178,-2477.2161762,0.00011,4]
[347370065,1735738249190,-850.84199203,0.00011,4]
[347370066,1735738249214,-3324.44054216,0.00011,4]
[347370067,1735738249766,-596.0138533,0.00010958,2]
[347370068,1735738249784,-766.7461467,0.00010958,2]
[347370069,1735738249794,-43.16827876,0.00011,4]
[347370070,1735738249815,-770.57157677,0.00011,4]
[347370071,1735738249828,-11517.868,0.00011,4]
[347370072,1735738249842,-5666.5359537,0.00011,4]
[347370073,1735738249854,-1730.84596,0.00011,4]
[347370074,1735738249865,-2632766.71908736,0.00011,4]
[347370075,1735738249876,-1699.68651401,0.00011,4]
[347370076,1735738249887,-851.66209195,0.00011,4]
[347370077,1735738249899,-11819.39745183,0.00011,4]
[347370078,1735738249911,-2964.84107012,0.00011,4]
[347370079,1735738249922,-331.07,0.00011,4]
[347370080,1735738250000,-39643.23435944,0.00011,4]
[347370081,1735738250012,-3257.921871,0.00011,4]
[347370082,1735738250024,-896.82497611,0.00011,4]
[347370083,1735738250035,-383.57266039,0.00011,4]
[347370084,1735738250047,-5620.00299894,0.00011,4]
[347370085,1735738250058,-294.0,0.00011,4]
[347370086,1735738250069,-1347.0,0.00011,4]
[347370087,1735738250088,-7663.15022975,0.00011,4]
[347370088,1735738250315,-2408.64388748,0.00011,4]
[347370089,1735738250327,-962.70634916,0.00011,4]
[347370090,1735738250338,-2446.67393065,0.00011,4]